Cogmind - Beta 14 @@@ ROGUE MODE // 2024.09.02 @ 14:42:39 Player: jimmyl Result: Destroyed by S-27 Virus with Autogun Performance ------------- Evolutions (5) 2500 Regions Visited (8) 1600 Robots Destroyed (127) 635 Value Destroyed (5566) 5566 Prototype IDs (7) 140 Alien Tech Used (0) 0 Bonus (1828) 1828 TOTAL SCORE: 12269 Bonus ------- High Alert Combat Kills 436 Follower Combat Kills 192 Entered Garrisons 200 Used RIF Installer 1000 Cogmind --------- Core Integrity 0/1000 Matter 46/300 Energy 99/100 System Corruption 10% Temperature Cool (45) Movement Hovering (80) Location -5/Factory Parts ------- > --- POWER (2) -------- (None) > --- PROPULSION (3) --- Combat Gravmag System Combat Gravmag System (fused) Combat Gravmag System > --- UTILITY (9) ------ Enhanced Optical Array Improved Target Analyzer Improved Hacking Suite Relay Coupler [Grunt] (1) > --- WEAPON (3) ------- (None) > --- INVENTORY (5) ---- Quantum Capacitor Layered Medium Armor Plating Relay Coupler [Demolisher] (22) Missile Launcher Peak State ------------ > --- POWER ------------ Light Fission Core > --- PROPULSION ------- Wheel Armored Wheel > --- UTILITY ---------- High-capacity Storage Unit Advanced Sensor Array Improved Signal Interpreter Improved Target Analyzer Core Analyzer Quantum Capacitor Improved Hacking Suite Relay Coupler [Hunter] > --- WEAPON ----------- Mass Driver Remote Datajack Power Sword > --- INVENTORY -------- Enhanced Optical Array Quantum Capacitor Layered Medium Armor Plating Relay Coupler [Demolisher] Relay Coupler [Specialist] Gatling Laser Flak Gun Flak Gun Enhanced Gauss Cannon Missile Launcher Scatter Rocket Array Improved Remote Datajack [Rating: 71] Favorites ----------- Power Light Nuclear Core Engine Improved Ion Engine Power Core Light Nuclear Core Propulsion Light Treads Treads Light Treads Leg Improved Carbon-fiber Leg Wheel Wheel Hover Unit Combat Gravmag System Utility High-capacity Storage Unit Device Improved Heat Sink Storage High-capacity Storage Unit Processor Improved Signal Interpreter Hackware Relay Coupler [Swarmer] Protection Reactive Plating Weapon Pulse Rifle Energy Gun Pulse Rifle Energy Cannon Plasma Cannon Ballistic Gun Light Assault Rifle Ballistic Cannon Assault Cannon Launcher Scatter Rocket Array Special Weapon Remote Datajack Slashing Weapon Power Sword Build | -11 -10 -9 -8 -8 -8 -7 -6 -5 ------- Run | Yrd Mat Mat Mat Gar Mat Fac Fac Fac Slots Evolved 10 | . . 2 2 . . 2 2 2 Power 1 | . . . . . . . . 1 Propulsion 1 | . . . 1 . . . . . Utility 7 | . . 2 1 . . 2 2 . Weapon 1 | . . . . . . . . 1 Parts Attached 156 | . 20 12 12 28 13 14 27 30 Power 12 | . 2 2 1 2 . 1 2 2 Engine 6 | . 2 1 1 . . 1 1 . Core 6 | . . 1 . 2 . . 1 2 Reactor . | . . . . . . . . . Propulsion 47 | . 9 4 3 6 3 6 5 11 Treads 18 | . 4 3 3 4 . . 3 1 Leg 11 | . . . . 2 3 5 1 . Wheel 13 | . 5 1 . . . 1 1 5 Hover 5 | . . . . . . . . 5 Flight . | . . . . . . . . . Utility 38 | . 3 3 2 6 3 5 9 7 Device 11 | . . 2 . 2 . 1 4 2 Storage 1 | . 1 . . . . . . . Processor 10 | . 1 1 . 1 . 2 2 3 Hackware 11 | . . . . 1 3 2 3 2 Protection 5 | . 1 . 2 2 . . . . Artifact . | . . . . . . . . . Weapon 59 | . 6 3 6 14 7 2 11 10 Energy Gun 25 | . 3 3 5 7 4 . 2 1 Energy Cannon 4 | . 2 . . . . 1 1 . Ballistic Gun 1 | . 1 . . . . . . . Ballistic Cannon 9 | . . . . 4 . . 1 4 Launcher 6 | . . . 1 1 . . 2 2 Special Weapon 12 | . . . . 2 3 1 3 3 Impact Weapon . | . . . . . . . . . Slashing Weapon 2 | . . . . . . . 2 . Piercing Weapon . | . . . . . . . . . Special Melee Weapon . | . . . . . . . . . Unidentified Prototypes 5 | . . . 2 . . . 2 1 Parts Lost 57 | . 3 6 . 12 5 1 7 23 Power 9 | . 1 1 . 2 1 . 2 2 Propulsion 23 | . 1 2 . 5 3 . 2 10 Utility 13 | . . 1 . 3 1 . 2 6 Weapon 12 | . 1 2 . 2 . 1 1 5 Highest Loss Streak 7 | . 3 3 . 4 4 1 3 7 To Critical Strikes . | . . . . . . . . . Average Slot Usage (%) 86 | . 94 93 96 93 88 86 83 60 Engine 3 | . 11 2 8 2 . 4 2 . Core 3 | . . 7 . 6 7 . 2 3 Treads 12 | . 19 17 27 21 . . 4 3 Leg 5 | . 3 . . . 20 19 11 . Wheel 1 | . 3 3 . . . 2 1 3 Device 6 | . . 10 9 6 . 6 10 2 Storage 8 | . 14 11 9 9 9 7 6 4 Processor 17 | . 9 19 18 19 14 14 18 22 Hackware 5 | . . . . 1 19 18 11 5 Protection 2 | . 3 . 6 6 . . . . Energy Gun 8 | . 3 18 17 13 13 . . . Energy Cannon 1 | . 3 2 . . . 6 2 . Ballistic Gun 2 | . 20 . . . . . . . Ballistic Cannon 1 | . . . . 3 . . 1 . Slashing Weapon 1 | . . . . . . . 3 5 Peak Build Rating 71 | . 7 18 29 35 38 38 54 71 Average Rating 29 | . 6 14 25 28 32 34 42 45 On Entrance 23 | 6 6 7 18 29 35 24 35 53 Naked Turns . | . . . . . . . . . Heaviest Build 68 | 13 50 54 65 65 51 58 68 67 Greatest Support 64 | 20 40 40 64 64 38 50 60 60 Greatest Overweight (x) 18 | . 13 4 1 1 2 5 5 18 Average Overweight (x) 1 | . . 1 . . 1 2 1 2 Largest Inventory Capacity 20 | . 20 20 20 20 20 20 20 20 Average Capacity 18 | . 9 20 20 20 20 20 20 18 Most Carried 20 | . 10 12 15 20 19 14 14 16 Average Carried 11 | . 7 8 13 14 16 9 9 11 Final Capacity 20 | 8 20 20 20 20 20 20 20 5 Final Carried 18 | 6 5 12 14 18 15 11 14 5 Class Distribution -------------------- 39% | Mutant 28% | Bothacker-Mutant 20% | Scavenger-Mutant 6% | Scavenger-Gladiator 4% | Bothacker-Skirmisher Dominant Class ---------------- Mutant | -10/Materials Scavenger-Mutant | -9/Materials Scavenger-Mutant | -8/Materials Mutant | -8/Garrison Bothacker-Mutant | -8/Materials Bothacker-Mutant | -7/Factory Bothacker-Mutant | -6/Factory Mutant | -5/Factory Resources | -11 -10 -9 -8 -8 -8 -7 -6 -5 ----------- Run | Yrd Mat Mat Mat Gar Mat Fac Fac Fac Matter Collected 2762 | 200 261 182 80 570 294 105 406 664 Remotely . | . . . . . . . . . Salvage Created 4144 | . 511 752 171 1001 103 141 534 931 Parts 260 | . 37 57 14 64 5 5 25 53 Haulers Intercepted . | . . . . . . . . . Recyclers Shooed 2 | . 2 . . . . . . . Parts Field Recycled . | . . . . . . . . . Retrieved Matter . | . . . . . . . . . Parts Self-Destructed . | . . . . . . . . . Prevented . | . . . . . . . . . Kills | -11 -10 -9 -8 -8 -8 -7 -6 -5 ------- Run | Yrd Mat Mat Mat Gar Mat Fac Fac Fac Combat Hostiles Destroyed 103 | . 15 19 6 27 3 3 12 18 Melee 9 | . . . . . . . 2 7 Guns 56 | . 12 14 2 20 3 . 3 2 Cannons 22 | . 3 5 . 2 . 2 7 3 AOE 13 | . . . 4 3 . . . 6 Classes Destroyed 12 | . 3 2 . 3 1 . . 3 Worker 5 | . . . . . . . . 5 Builder 8 | . . . . . 1 . 1 6 Recycler 2 | . . . . . . . . 2 Watcher 9 | . 2 3 1 . . . 1 2 Swarmer 31 | . 6 5 4 6 . . 5 5 Grunt 35 | . 9 5 . 9 3 . 3 6 Brawler 2 | . . . . 2 . . . . Duelist 3 | . . 1 . 2 . . . . Sentry 17 | . . 8 2 3 . 1 3 . Specialist 1 | . . . . 1 . . . . Hunter 1 | . . . . . . . . 1 Programmer 13 | . . . . 4 . 2 1 6 Best Kill Streak 8 | . 3 5 4 3 2 2 3 8 Combat Bots Only 4 | . 3 4 4 3 1 2 3 4 Max Kills in Single Turn 5 | . 1 2 3 3 2 1 1 5 Gunslinging 1 | . . 1 . 1 . . . . Exploded 3 | . . . 3 3 . . . 2 Melee 1 | . . . . . . . 1 1 Uniques/NPCs Destroyed . | . . . . . . . . . Combat | -11 -10 -9 -8 -8 -8 -7 -6 -5 -------- Run | Yrd Mat Mat Mat Gar Mat Fac Fac Fac Hostile Shots Fired 880 | . 86 106 22 157 46 86 143 234 Missed 281 | . 19 34 9 36 14 45 52 72 Damage Taken 9484 | . 793 967 192 1995 575 396 1354 3212 Core 2351 | . 178 325 29 388 63 100 263 1005 Absorbed by Shields 273 | . . . . 12 . . 261 . Redirected to Shielding 12 | . 12 . . . . . . . Ignored by Resistances 75 | . . . 22 53 . . . . Regen/Repaired (Parts) 98 | . . . . . 89 . 9 . Core Remaining (%) 52 | 100 28 18 . . 12 85 69 . Volleys Fired 404 | . 58 55 13 110 33 25 57 53 Largest 2 | . 2 2 2 2 2 1 2 2 Hottest 143 | . 110 119 119 126 126 80 143 137 Shots Fired 641 | . 114 99 24 213 38 28 68 57 Gun 408 | . 96 76 22 178 12 . 15 9 Cannon 163 | . 18 23 . 34 . 24 30 34 Launcher 13 | . . . 2 1 . . 5 5 Special 57 | . . . . . 26 4 18 9 Kinetic 166 | . 84 . . 34 . . 14 34 Thermal 356 | . 30 99 13 139 12 24 30 9 Explosive 8 | . . . 2 1 . . . 5 Electromagnetic 54 | . . . 9 39 . . 6 . Robot Hit Streak 18 | . 12 16 9 18 7 17 12 8 Robot Miss Streak 6 | . 3 3 1 3 3 1 3 6 Penetration Max . | . . . . . . . . . Secondary Targets 6 | . . 1 . 5 . . . . Max Gunslinging Chain 1 | . . 1 . 1 . . . . Shots Hit Robots 450 | . 80 72 19 118 22 24 48 67 Core Hits 213 | . 31 34 13 43 5 3 26 58 Critical Kills 1 | . . . . . . 1 . . Critical Parts Destroyed . | . . . . . . . . . Critical Strikes 20 | . 3 4 1 4 . 1 2 5 Burn 11 | . 3 4 1 3 . . . . Meltdown 1 | . . . . . . 1 . . Blast 8 | . . . . 1 . . 2 5 Melee Attacks 38 | . . . . . . . 6 32 Impact . | . . . . . . . . . Slashing 38 | . . . . . . . 6 32 Piercing . | . . . . . . . . . Sneak Attacks 5 | . . . . . . . . 5 Combat Hostiles . | . . . . . . . . . Follow-up Attacks 2 | . . . . . . . 1 1 Damage Inflicted 10890 | . 921 1178 712 2501 139 530 1151 3758 Guns 4357 | . 658 866 342 1962 139 . 256 134 Cannons 3007 | . 263 303 . 387 . 530 559 965 Explosions 2164 | . . . 370 152 . . 193 1449 Melee 1336 | . . . . . . . 133 1203 Ramming 26 | . . 9 . . . . 10 7 Kinetic 2179 | . 572 . . 387 . . 255 965 Thermal 4509 | . 349 1169 182 1464 139 530 542 134 Explosive 1932 | . . . 331 152 . . . 1449 Electromagnetic 908 | . . . 199 498 . . 211 . Impact . | . . . . . . . . . Slashing 1336 | . . . . . . . 133 1203 Piercing . | . . . . . . . . . Highest Corruption 11 | . 2 . 2 11 11 3 1 10 Average Corruption 4 | . 2 . 2 3 11 2 1 6 Corruption Purged . | . . . . . . . . . Corruption Blocked . | . . . . . . . . . Effects 144 | . 6 . 1 54 22 12 8 41 Message Errors 35 | . 2 . . 10 7 3 2 11 Matter Fused 32 | . 1 . . 12 4 4 4 7 Heat Flow Errors 17 | . 1 . 1 8 2 . . 5 Energy Discharges 14 | . 1 . . 4 4 . . 5 Parts Fused 2 | . . . . . . . . 2 Data Loss (minor) 15 | . 1 . . 3 2 . 1 8 Data Loss (major) 12 | . . . . 8 . 2 1 1 Misfires 12 | . . . . 6 2 3 . 1 Alerts 3 | . . . . 2 1 . . . Misdirections 1 | . . . . . . . . 1 Weapon Failures 1 | . . . . 1 . . . . Overload Shots . | . . . . . . . . . Overflow Damage 459 | . 8 . . 53 . 16 1 381 Projectiles 119 | . 8 . . 21 . 16 1 73 Explosions 42 | . . . . 32 . . . 10 Melee 298 | . . . . . . . . 298 Knockbacks 13 | . . . . 2 . . 3 8 Impact . | . . . . . . . . . Kinetic 12 | . . . . 2 . . 3 7 Secondary 1 | . . . . . . . . 1 Self-Inflicted Damage 221 | . . 2 50 . . . . 169 Shots 6 | . . . 1 . . . . 5 Rammed 6 | . . 2 . . . . . 4 Targets Rammed 9 | . . 2 . . . . 3 4 Kicked 3 | . . . . . . . 3 . Crushed . | . . . . . . . . . Highest Temperature 445 | . 255 255 102 445 137 211 75 213 Average Temperature 68 | . 85 63 33 78 48 63 28 54 Received Heat Transfer 2629 | . 375 399 36 657 288 87 259 528 Effects 3 | . . . . 3 . . . . Shutdowns 1 | . . . . 1 . . . . Interference 2 | . . . . 2 . . . . Siege Activations . | . . . . . . . . . Robots Corrupted 1 | . . . . 1 . . . . Combat Hostiles 1 | . . . . 1 . . . . Parts Fried 6 | . . . 2 3 . . 1 . Impact Corruptions . | . . . . . . . . . Robots Melted 2 | . . . . 1 . 1 . . Combat Hostiles 2 | . . . . 1 . 1 . . Parts Melted 33 | . 2 14 1 6 1 5 3 1 Heat Transferred 10214 | . 1036 2974 457 3145 296 950 1081 275 Parts Sabotaged 2 | . . . . . . . . 2 Parts Stolen . | . . . . . . . . . Parts Stripped . | . . . . . . . . . Power Chain Reactions 1 | . . . 1 . . . . . Alert | -11 -10 -9 -8 -8 -8 -7 -6 -5 ------- Run | Yrd Mat Mat Mat Gar Mat Fac Fac Fac Peak Influence 1590 | . 185 309 273 1590 852 370 216 626 Initial 774 | . . 71 108 119 774 305 112 37 Average 350 | . 83 131 141 765 775 212 103 278 Maximum Alert Level 4 | . . 1 1 4 3 1 1 2 Low Security (%) 53 | . 100 84 97 . . 56 98 42 Level 1 15 | . . 15 2 15 . 43 1 27 Level 2 13 | . . . . 29 26 . . 30 Level 3 12 | . . . . 33 73 . . . Level 4 5 | . . . . 20 . . . . Level 5 . | . . . . . . . . . High Security . | . . . . . . . . . Max Security . | . . . . . . . . . Squads Dispatched 21 | . 2 1 . . 3 3 6 6 Investigation 3 | . . . . . . . 2 1 Extermination 7 | . . . . . . 2 2 3 Reinforcement 7 | . 2 1 . . 2 . 2 . Assault 4 | . . . . . 1 1 . 2 Garrison . | . . . . . . . . . Intercept . | . . . . . . . . . Searches Triggered . | . . . . . . . . . Construction Impeded . | . . . . . . . . . Haulers Reinforced . | . . . . . . . . . Active Scanning Responses . | . . . . . . . . . Cargo Convoy Interrupts 1 | . . . . . . 1 . . Stealth | -11 -10 -9 -8 -8 -8 -7 -6 -5 --------- Run | Yrd Mat Mat Mat Gar Mat Fac Fac Fac Distress Signals 11 | . . 5 2 . . . 2 2 Communications Jammed 20 | . . . . . 18 . 2 . Distress Signals 20 | . . . . . 18 . 2 . Times Spotted 202 | . 23 33 11 30 19 6 35 45 Peak Tracking Total 11 | . 3 5 4 4 6 2 5 11 Tactical Retreats 10 | . 2 2 1 . . . 2 3 Traps | -11 -10 -9 -8 -8 -8 -7 -6 -5 ------- Run | Yrd Mat Mat Mat Gar Mat Fac Fac Fac Traps Triggered 18 | . 5 . 1 6 . 2 4 . Indirectly . | . . . . . . . . . Trap Hack Attempts . | . . . . . . . . . Triggered . | . . . . . . . . . Disarmed . | . . . . . . . . . Reprogrammed . | . . . . . . . . . Reused . | . . . . . . . . . Traps Extracted . | . . . . . . . . . Installed . | . . . . . . . . . Triggered 1 | . . . . . . 1 . . Machines | -11 -10 -9 -8 -8 -8 -7 -6 -5 ---------- Run | Yrd Mat Mat Mat Gar Mat Fac Fac Fac Machines Disabled 26 | . . 1 1 5 . 2 3 14 Max in Single Turn 3 | . . 1 1 1 . 1 1 3 Garrison Access 2 | . . . . . . 1 . 1 Garrison Relay 6 | . . . . 6 . . . . Machines Repaired . | . . . . . . . . . Machines Dismantled 5 | . . . . 5 . . . . Machines Sabotaged . | . . . . . . . . . Overloaded Fab Kills . | . . . . . . . . . Hacking | -11 -10 -9 -8 -8 -8 -7 -6 -5 --------- Run | Yrd Mat Mat Mat Gar Mat Fac Fac Fac Machines Accessed 19 | . 2 1 2 2 . 2 5 5 Terminals 15 | . 2 1 1 2 . 2 4 3 Fabricators 2 | . . . . . . . 1 1 Repair Stations . | . . . . . . . . . Recycling Units . | . . . . . . . . . Scanalyzers . | . . . . . . . . . Garrison Access 2 | . . . 1 . . . . 1 Total Hacks 43 | . 2 5 7 4 . 6 10 9 Successful 16 | . 2 2 3 1 . 2 1 5 Failed 27 | . . 3 4 3 . 4 9 4 Catastrophic 6 | . . 1 . 1 . . 2 2 Database Lockouts . | . . . . . . . . . Manual 11 | . . 4 2 . . . 3 2 Terminals 35 | . 2 5 5 4 . 6 8 5 Fabricators 4 | . . . . . . . 2 2 Repair Stations . | . . . . . . . . . Recycling Units . | . . . . . . . . . Scanalyzers . | . . . . . . . . . Garrison Access 4 | . . . 2 . . . . 2 Terminal Hacks 12 | . 2 2 2 1 . 2 1 2 Record 1 | . . . . . . . . 1 Robot Analysis 2 | . . 1 1 . . . . . Prototype ID Bank 1 | . . . . . . 1 . . Branch Access Points 2 | . 1 . . . . 1 . . Emergency Access Points 1 | . . . . . . . 1 . Locate Traps 1 | . . . . . . . . 1 Hauler Manifests 1 | . 1 . . . . . . . Zone Layout 2 | . . 1 1 . . . . . Garrison Registry 1 | . . . . 1 . . . . Fabricator Hacks 1 | . . . . . . . . 1 Network Status 1 | . . . . . . . . 1 Repair Station Hacks . | . . . . . . . . . Recycling Unit Hacks . | . . . . . . . . . Scanalyzer . | . . . . . . . . . Garrison Access Hacks 2 | . . . 1 . . . . 1 Unlock Access 2 | . . . 1 . . . . 1 Unauthorized Hacks 1 | . . . . . . . . 1 Terminals . | . . . . . . . . . Fabricators . | . . . . . . . . . Repair Stations . | . . . . . . . . . Recycling Units . | . . . . . . . . . Scanalyzers . | . . . . . . . . . Garrison Access 1 | . . . . . . . . 1 Restock 1 | . . . . . . . . 1 Data Cores Recovered . | . . . . . . . . . Used . | . . . . . . . . . Hacking Detections 15 | . 1 1 1 1 . 2 5 4 Full Trace Events 4 | . . . . 1 . . 2 1 Feedback Events . | . . . . . . . . . Feedback Blocked . | . . . . . . . . . Robot Schematics Acquired . | . . . . . . . . . Robots Built . | . . . . . . . . . Authchips . | . . . . . . . . . Time . | . . . . . . . . . Total Robot Build Rating . | . . . . . . . . . Part Schematics Acquired . | . . . . . . . . . Parts Built . | . . . . . . . . . Authchips . | . . . . . . . . . Time . | . . . . . . . . . Total Part Build Rating . | . . . . . . . . . Parts Repaired . | . . . . . . . . . Time . | . . . . . . . . . Parts Recycled . | . . . . . . . . . Recycled Matter . | . . . . . . . . . Retrieved Matter . | . . . . . . . . . Retrieved Components . | . . . . . . . . . Parts Scanalyzed . | . . . . . . . . . Part Schematics Acquired . | . . . . . . . . . Parts Damaged . | . . . . . . . . . Bothacking | -11 -10 -9 -8 -8 -8 -7 -6 -5 ------------ Run | Yrd Mat Mat Mat Gar Mat Fac Fac Fac Used RIF Installer 2 | . . . . 2 . . . . Signal Jammer 1 | . . . . 1 . . . . Robots Hacked 28 | . . . . . 12 2 9 5 Non-combat 7 | . . . . . 3 . 4 . Combat 21 | . . . . . 9 2 5 5 Robot Hacks Applied 39 | . . . . . 17 4 12 6 parse_system 1 | . . . . . 1 . . . generate_echo 1 | . . . . . . . 1 . find_chute 1 | . . . . . . . 1 . map_route 2 | . . . . . 1 . 1 . find_garrison 2 | . . . . . . 1 . 1 reboot_propulsion 1 | . . . . . . . . 1 scatter_targeting 4 | . . . . . 2 1 1 . overload_power 6 | . . . . . 4 1 1 . amplify_resonance 5 | . . . . . 3 . 2 . wipe_record 1 | . . . . . 1 . . . go_dormant 1 | . . . . . . . . 1 overwrite_iff 3 | . . . . . 2 . 1 . streamctrl_high 3 | . . . . . . . 2 1 formatsys_low 2 | . . . . . 1 . 1 . formatsys_high 6 | . . . . . 2 1 1 2 Relay Couplers Released 34 | . . . . 27 . 1 . 6 Machine Destruction 30 | . . . . 27 . 1 . 2 Programmers 4 | . . . . . . . . 4 Attached 10 | . . . . 1 3 2 2 2 Fabnet Peak Effective % . | . . . . . . . . . Robots Rewired . | . . . . . . . . . Allies Hacked . | . . . . . . . . . Hacks Repelled . | . . . . . . . . . Allies | -11 -10 -9 -8 -8 -8 -7 -6 -5 -------- Run | Yrd Mat Mat Mat Gar Mat Fac Fac Fac Total Allies 14 | . . . . . 5 1 5 3 Largest Group 2 | . . . . . 2 1 2 2 Highest-Rated Group 58 | . . . . . 31 32 55 58 Highest-Rated Ally 41 | . . . . . 16 32 41 41 Total Orders 3 | . . . . . 1 . 2 . AID 3 | . . . . . 1 . 2 . Ally Attacks 38 | . . . . . 15 1 14 8 Total Damage 755 | . . . . . 184 51 193 327 Kills 8 | . . . . . 3 1 1 3 Allies Corrupted . | . . . . . . . . . Allies Melted . | . . . . . . . . . Intel | -11 -10 -9 -8 -8 -8 -7 -6 -5 ------- Run | Yrd Mat Mat Mat Gar Mat Fac Fac Fac Robot Analysis Total 2 | . . 1 1 . . . . . Derelict Logs Recovered . | . . . . . . . . . Drone Launches . | . . . . . . . . . Drone Recoveries . | . . . . . . . . . Exploration | -11 -10 -9 -8 -8 -8 -7 -6 -5 ------------- Run | Yrd Mat Mat Mat Gar Mat Fac Fac Fac Turns Passed 10398 | . 1022 1439 698 2649 543 1033 1368 1646 Spaces Moved 4453 | 1 526 536 302 1054 179 496 588 771 Core 59 | . 1 . . . . . . 58 Treads 2404 | . 316 415 302 998 . . 182 191 Legs 919 | 1 98 . . 56 179 296 289 . Wheels 923 | . 111 121 . . . 200 117 374 Hover 148 | . . . . . . . . 148 Flight . | . . . . . . . . . Fastest Speed 50 | 120 100 140 150 150 190 155 120 50 Average Speed 182 | 120 146 223 191 202 192 177 169 160 Slowest Speed 950 | 120 700 320 230 240 260 193 320 950 Overloaded Moves . | . . . . . . . . . Propulsion Burnouts . | . . . . . . . . . Robots Hopped . | . . . . . . . . . Cave-ins Triggered . | . . . . . . . . . Exploration Rate (%) 39 | 2 93 58 37 86 23 15 17 23 Regions Visited 8 Branch Regions . Pre-discovered Areas . | . . . . . . . . . Known Exits Taken 5 | . . 1 1 . 1 1 1 . Unknown Exits Taken 2 | 1 1 . . . . . . . Scrap Searched . | . . . . . . . . . Spaces Dug 3 | . . . . . . . 2 1 Terrain Destroyed 202 | . . . 18 10 . . 12 162 Melee 3 | . . . . . . . 2 1 Projectile 5 | . . . . . . . . 5 AOE 194 | . . . 18 10 . . 10 156 Terrain Rammed . | . . . . . . . . . Walls Destroyed . | . . . . . . . . . Machines Disabled . | . . . . . . . . . Actions | -11 -10 -9 -8 -8 -8 -7 -6 -5 --------- Run | Yrd Mat Mat Mat Gar Mat Fac Fac Fac Total 5997 | . 671 675 397 1334 352 629 883 1056 Wait 771 | . 50 55 55 81 124 84 169 153 Move 4446 | . 525 535 302 1053 178 495 587 771 Hop . | . . . . . . . . . Pick Up 64 | . 11 11 6 22 1 2 7 4 Fast Attach 62 | . 6 9 4 5 3 4 15 16 Attach 68 | . 13 3 2 16 4 7 9 14 Detach 14 | . 1 . 1 3 . 1 5 3 Swap 27 | . 1 . 6 7 6 3 3 1 Drop 56 | . 6 5 8 11 3 8 7 8 Fire 404 | . 58 55 13 110 33 25 57 53 Melee 34 | . . . . . . . 5 29 Ram 1 | . . 1 . . . . . . Kick 3 | . . . . . . . 3 . Crush 5 | . . 1 . . . . . 4 Escape Stasis 27 | . . . . 11 . . 16 . Rewire . | . . . . . . . . . Trap . | . . . . . . . . . Miscellaneous 15 | . . . . 15 . . . . Route ------- -11/Scrapyard -10/Materials (discovered 4 exits: *Mat x3 / *Min) -9/Materials (discovered 2 exits: *Mat / *Min) -8/Materials -8/Garrison (discovered 3 exits: *Mat x3) -8/Materials -7/Factory (discovered 4 exits: *Fac / Sto / Low x2) -6/Factory -5/Factory History --------- Turn | Location | Event 1 | -11/Scrapyard | Discovered new exit (range 0) 1 | -11/Scrapyard | Entered Materials 106 | -10/Materials | Discovered new exit (range 16) 149 | -10/Materials | Discovered new exit (range 6) 308 | -10/Materials | Build established: Mutant 373 | -10/Materials | Identified exit to Mines 436 | -10/Materials | Discovered new exit (range 11) 705 | -10/Materials | Discovered new exit (range 15) 742 | -10/Materials | Core integrity fell below 50% 790 | -10/Materials | Lost 3 parts (1p1n1w) 1023 | -10/Materials | Entered another Materials area 1023 | -9/Materials | Evolved 2 slots: Utility x2 1204 | -9/Materials | Lost 3 parts (1p1n1w) 1560 | -9/Materials | Build established: Scavenger-Mutant 1712 | -9/Materials | Core integrity fell below 50% 1946 | -9/Materials | Discovered new exit (range 12) 1987 | -9/Materials | Identified exit to Mines 2405 | -9/Materials | Discovered new exit (range 15) 2434 | -9/Materials | Core integrity fell below 20% 2457 | -9/Materials | Identified exit to Materials 2462 | -9/Materials | Entered another Materials area 2462 | -8/Materials | Evolved 2 slots: Propulsion x1, Utility x1 3160 | -8/Materials | Identified exit to Garrison 3160 | -8/Materials | Entered Garrison 3194 | -8/Garrison | Build established: Mutant 3374 | -8/Garrison | Triggered checkpoint 3848 | -8/Garrison | Triggered checkpoint 3924 | -8/Garrison | Triggered checkpoint 4006 | -8/Garrison | Triggered checkpoint 4121 | -8/Garrison | Lost 4 parts (1p1u2w) 4265 | -8/Garrison | Discovered new exit (range 14) 4416 | -8/Garrison | Core integrity fell below 50% 4468 | -8/Garrison | Discovered new exit (range 59) 4468 | -8/Garrison | Discovered new exit (range 30) 4468 | -8/Garrison | Discovered new exit (range 19) 4624 | -8/Garrison | Triggered checkpoint 4691 | -8/Garrison | Installed Relay Interface Framework 4871 | -8/Garrison | Build established: Scavenger-Mutant 4969 | -8/Garrison | Garrison Relay disabled 5080 | -8/Garrison | Garrison Relay disabled 5224 | -8/Garrison | Lost 4 parts (2n2u) 5262 | -8/Garrison | Garrison Relay disabled 5271 | -8/Garrison | Build established: Bothacker-Mutant 5278 | -8/Garrison | Garrison Relay disabled 5306 | -8/Garrison | Garrison Relay disabled 5670 | -8/Garrison | System corruption reached 10% 5738 | -8/Garrison | Expanded RIF knowledge: Signal Jamming 5807 | -8/Garrison | Identified exit to Materials 5809 | -8/Garrison | Entered Materials 6209 | -8/Materials | First assault squad dispatched 6216 | -8/Materials | Core integrity fell below 20% 6286 | -8/Materials | Lost 4 parts (1p2n1u) 6323 | -8/Materials | Discovered new exit (range 15) 6350 | -8/Materials | Identified exit to Factory 6352 | -8/Materials | Entered Factory 6352 | -7/Factory | Evolved 2 slots: Utility x2 6777 | -7/Factory | Identified exit to Storage 6777 | -7/Factory | Identified exit to Lower Caves 7185 | -7/Factory | Discovered new exit (range 16) 7225 | -7/Factory | Identified exit to Factory 7350 | -7/Factory | Cargo convoy interrupted 7385 | -7/Factory | Entered another Factory area 7385 | -6/Factory | Evolved 2 slots: Utility x2 8050 | -6/Factory | Lost 3 parts (1n1u1w) 8267 | -6/Factory | Found Prototype Launcher 8267 | -6/Factory | Identified Scatter Rocket Array 8719 | -6/Factory | Build established: Scavenger-Gladiator 8735 | -6/Factory | Discovered new exit (range 10) 8749 | -6/Factory | Identified exit to Factory 8753 | -6/Factory | Entered another Factory area 8753 | -5/Factory | Evolved 2 slots: Power x1, Weapon x1 9092 | -5/Factory | Lost 3 parts (2n1u) 9157 | -5/Factory | Lost 4 parts (2n1u1w) 9309 | -5/Factory | Lost 3 parts (1p2n) 9565 | -5/Factory | Build established: Mutant 9773 | -5/Factory | Found Quantum Capacitor 9775 | -5/Factory | Found Quantum Capacitor 9896 | -5/Factory | Core integrity fell below 50% 9951 | -5/Factory | Lost 7 parts (1p2n2u2w) 9977 | -5/Factory | System corruption reached 10% 10115 | -5/Factory | Identified exit to Garrison 10208 | -5/Factory | Lost 3 parts (1n1u1w) 10253 | -5/Factory | First assault squad dispatched 10371 | -5/Factory | Core integrity fell below 20% 10399 | -5/Factory | Destroyed by S-27 Virus with Autogun Last Messages --------------- 10287_ Imp. Remote Datajack blown off. 10287_ E-15 Imp destroyed. 10288_ K-01 Serf collects debris. 10292_ Acquired 75 matter. 10293_ K-01 Serf collects debris. 10301_ System corrupted: Component data lost. 10305_ Acquired Cmb. Gravmag System. 10321_ Connecting with Terminal... 10323_ TJS9, &UHHBNL2RT>Y H%MYWVGFLHZ8T# 10348_ System corrupted: Energy discharge (-2). 10359_ C-30 ARC bursts open, deploying its payload. 10359_ G-67 Veteran unfolds itself. 10359_ G-50 Soldier unfolds itself. 10359_ B-60 Warrior unfolds itself. 10359_ I-47 Archangel unfolds itself. 10366_ System corrupted: Cmb. Gravmag System fused. 10378_ ALERT: Rogue bot located, Programmers report to Factory Zone 4T. 10381_ WX/QO5 IOEMJOY17 DWY=H7VZ 10396_ System corrupted: Heat flow error (+151). Map ----- +----------------------------------------------------+ | ?????????????????????????????????????????????????? | | ?????????????????????????????????????????????????? | | ?????????????????????????????????????????????????? | | ?????????????????????????????????????????????????? | | ?????????????????????????????????????????????????? | | ?????????????????????????????????????????????????? | | ?????????????????????????????????????????????????? | | ?????????????????????????????????????????????????? | | ?????????????????????????????????????????????????? | | ?????????????????????????????????????????????????? | | ?????????????????????????????????????????????????? | | ?????????????????????????????????????????????????? | | ?????????????????????????????????????????????????? | | ?????????????????????????##################??????? | | ?????????????????????????# #??????? | | ?????????????????????????# #??????? | | ?????????????????????????# #??????? | | ??????????????????????????? #??????? | | ????????????????????????????? #??????? | | ??????????????????????????????? #??????? | | ????????????????????????????????? #??????? | | ??????????????????????????????????? #?????? | | ????????????????????????????????????? ????? | | ??????????????????######+##############+###?? | | ??????????????????# s# | | ??????????????????# @ sgs/ [ | | ??????????????????+ s # | | ??????????????????# ###################+#?? [ | | ??????????????????# #???????????# #???? | | ??????????????????# #?##???###### """" #?????? | | ??????????????????# ?+ ## """" #??????? | | ###+####??????????# #?# """ ## """" #??????? | | ??????????# #?# """ ## """" #??????? | | #??????????# #?# """ ## #??????? | | #??????????# #?# ## !! #??????# | | #??????????# #?# """ ## ! #?????? | | #??????????# #?# """ ## #????? | | #??????????# #?# """ ??# #????? | | #????????### ### ????# #???? | | #????????# ###+#############/####? | | ########## " # | | T" "%" # | | ^ " " " | | = # ] | | ### # | | = / #?# ##########+######+##"#? | | #?####+####???????????# #? | | #?????????????????????# #?? | | """" #?????????????????????# #?? | | """" #?????????????????????# ! #???# | +----------------------------------------------------+ Best States ------------- Heat Dissipation 54 Energy Generation 18 Energy Capacity 290 Matter Stores 300 Matter Capacity 300 Sight Range 22 Robot Scan Range 16 Terrain Scan Density 10 Armor Coverage 150 Resistance: KI 20 Resistance: TH 10 Weapon Shielding 33 Phase Shifting 5 Evasion (%) 55 Targeting Accuracy 5 Melee Accuracy 14 Target Analysis 6 Core Analysis 6 Recoil Reduction 3 Offensive Hacking 12 Relay Coupler Types 3 Relay Coupler Value 66 Item Schematics ----------------- None Robot Schematics ------------------ None Fabricated ------------ Nothing Alien Tech Used ----------------- None Achievements -------------- None Challenges ------------ None Game ------ Seed NuclearTargetDetector Manual? 0 Play Time 01:01:42 Cumulative 120.9 hours Start 2024.09.02 @ 12:44:05 End 2024.09.02 @ 14:42:39 Sessions 3 Manual Loads 0 Difficulty Rogue Special Mode None Game No. 195 Rogue 194 Adventurer 1 Explorer 0 Win Type - Total 1 Types 1/0/0/0/0/0/0/0/0 Lore% 63 Gallery% 66 Achievement% 50 Wizard Run 0 Options --------- Layout 1 ASCII 0 Keyboard 0 Movement Mouse Keybinds 0 Fullscreen 2 Font 20/SmallcapsGlow Map View 54x42 Zoom Use 0% Tactical HUD 1 Map Filters NONE Filters NONE Steam 0 RUN: 2bb8a1e5-20a4-495c-8b86-4fb3ef3c5ad6